bitfinex-derivatives/quotes_ETHF0:USTF0_20250604
["timestamp","ask_amount","ask_price","bid_price","bid_amount"]
[1749015507196,1.11505397,2622.2,2622.1,5.53522]
[1749015507403,1.11505397,2622.2,2622.1,10.53522]
[1749015507591,0.00571875,2622.2,2622.1,10.53522]
[1749015507898,3.2078,2623.1,2622.2,1.90549]
[1749015508202,0.76202,2622.8,2622.6,0.76206]
[1749015508392,0.76201,2622.9,2622.7,25.40344]
[1749015508590,1.1094048,2622.8,2622.7,25.40344]
[1749015509095,1.8714248,2622.8,2622.7,24.6414]
[1749015509900,1.8714248,2622.8,2622.7,25.40345]
[1749015510596,1.8714248,2622.8,2622.7,24.6414]
[1749015510799,1.1094048,2622.8,2622.7,24.6414]
[1749015511003,1.10961567,2622.8,2622.7,24.6414]
[1749015511200,1.10961567,2622.8,2622.7,25.40345]
[1749015512406,1.87163567,2622.8,2622.7,25.40345]
[1749015513006,1.10961567,2622.8,2622.7,25.40345]
[1749015514901,0.76201,2622.9,2622.7,25.40345]
[1749015515200,1.10948397,2622.8,2622.7,25.40345]
[1749015516404,1.10948397,2622.8,2622.7,25.47049602]
[1749015516596,1.10970744,2622.8,2622.7,25.47049602]
[1749015518104,1.87172744,2622.8,2622.7,6.81444602]
[1749015518307,1.87172744,2622.8,2622.7,24.69944602]
[1749015519101,1.87181504,2622.8,2622.7,24.69944602]
[1749015521104,1.87181504,2622.8,2622.7,0.06704602]
[1749015521404,1.87181504,2622.8,2622.7,22.71104602]
[1749015522000,1.10979504,2622.8,2622.7,23.47309602]
[1749015522201,1.10979504,2622.8,2622.7,24.70979602]
[1749015523001,1.10976642,2622.8,2622.7,24.70979602]
[1749015523301,1.10976642,2622.8,2622.7,23.94774602]
[1749015523499,1.87178642,2622.8,2622.7,23.94774602]
[1749015523700,1.87178642,2622.8,2622.7,24.70979602]
[1749015524706,1.87178642,2622.8,2622.7,23.94774602]
[1749015525002,1.10976642,2622.8,2622.7,24.70979602]
[1749015525398,1.87178642,2622.8,2622.7,24.70979602]
[1749015525799,1.10976642,2622.8,2622.7,24.70979602]
[1749015526408,1.87178642,2622.8,2622.7,24.70979602]
[1749015526603,1.10976642,2622.8,2622.7,24.70979602]
[1749015527101,1.11013088,2622.8,2622.7,24.70979602]
[1749015527306,1.87215088,2622.8,2622.7,24.70979602]
[1749015527808,1.11013088,2622.8,2622.7,24.70979602]
[1749015528608,3.2078,2623.7,2622.9,0.76199]
[1749015528813,0.6594,2623.5,2623.0,5.1163]
[1749015529008,1.42123,2623.5,2623.3,0.76185]
[1749015529204,1.42123,2623.5,2623.4,0.76185]
[1749015530101,1.42123,2623.5,2623.3,0.76185]
[1749015530305,0.76185,2623.4,2623.3,2.00335]
[1749015530600,1.42123,2623.5,2623.3,2.00335]
[1749015531111,0.6594,2623.5,2623.4,0.76185]
[1749015531307,0.00366286,2623.7,2623.6,0.76179]
[1749015531510,0.00366286,2623.7,2623.6,23.39679]
[1749015532213,0.00366286,2623.7,2623.6,8.72959]
[1749015532411,0.00366286,2623.7,2623.6,26.60359]
[1749015532611,0.00366286,2623.7,2623.6,23.39579]
[1749015537826,0.00366286,2623.7,2623.6,26.60359]
[1749015541824,0.00366286,2623.7,2623.6,26.59259]
[1749015545831,0.00366286,2623.7,2623.6,26.65963602]
[1749015546631,0.76155,2624.5,2624.4,0.76156]
[1749015546825,2.34733085,2624.5,2624.4,18.62056]
[1749015547324,3.10886085,2624.5,2624.4,17.859]
[1749015547631,3.10880829,2624.5,2624.4,17.859]
[1749015548030,3.10880829,2624.5,2624.4,18.62056]
[1749015548232,2.34727829,2624.5,2624.4,18.62056]
[1749015548433,3.10880829,2624.5,2624.4,17.859]
[1749015548828,2.34727829,2624.5,2624.4,22.615]
[1749015549026,3.10880829,2624.5,2624.4,22.614]
[1749015549332,4.38740829,2624.5,2624.4,22.614]
[1749015549535,8.62587829,2624.5,2623.9,3.96948]
[1749015549726,0.76164,2624.2,2624.0,23.37567]
[1749015550130,0.632,2624.1,2624.0,23.37567]
[1749015551231,1.75040246,2624.1,2624.0,23.37467]
[1749015553330,0.6096,2624.5,2624.4,0.76156]
[1749015553536,2.35029999,2624.5,2624.4,5.50856]
[1749015553840,0.76156,2624.4,2623.9,3.2078]
[1749015554044,1.11939999,2624.3,2624.2,0.76159]
[1749015554936,1.88097999,2624.3,2624.2,0.76159]
[1749015555130,1.11939999,2624.3,2624.2,0.76159]
[1749015556033,1.12053722,2624.4,2624.2,3.2078]
[1749015556234,3.8414,2624.9,2624.3,1.90397]
[1749015556430,3.8414,2624.9,2624.8,0.76144]
[1749015556431,0.6336,2624.9,2624.8,0.76144]
[1749015556636,1.75425473,2624.9,2624.8,23.35844]
[1749015556937,1.75425473,2624.9,2624.6,0.00571875]
[1749015556938,0.76147,2624.7,2624.6,0.00571875]
[1749015557132,1.12065473,2624.7,2624.6,22.60271875]
[1749015557338,1.12065473,2624.7,2624.6,23.36419875]
[1749015557542,1.74916001,2624.7,2624.6,23.36419875]
[1749015558033,1.12116001,2624.7,2624.6,23.36419875]
[1749015558238,1.12116001,2624.7,2624.6,24.61009875]
[1749015560738,1.12116001,2624.7,2624.6,24.67714477]
[1749015561439,0.7614,2625.0,2624.8,0.76143]
[1749015561739,1.12267872,2624.9,2624.8,0.76143]
[1749015564344,1.12267872,2624.9,2624.8,2.06233]
[1749015564738,3.2078,2625.5,2624.8,10.27013]
[1749015564933,0.6637,2625.3,2625.2,0.7613]
[1749015565240,0.6637,2625.3,2625.2,5.5073]
[1749015567444,0.6637,2625.3,2625.2,6.1211]
[1749015568044,0.6637,2625.3,2625.2,5.5073]
[1749015569845,1.42501,2625.3,2625.2,0.76132]
[1749015570151,1.42501,2625.3,2625.2,23.34332]
[1749015570351,1.42501,2625.3,2625.2,22.582]
[1749015570744,0.6637,2625.3,2625.2,23.34332]
[1749015571145,1.425,2625.3,2625.2,23.34332]
[1749015571754,0.6637,2625.3,2625.2,23.34332]
[1749015571956,1.425,2625.3,2625.2,23.34332]
[1749015572455,0.6637,2625.3,2625.2,23.34332]
[1749015574860,1.41387,2625.4,2625.3,0.7613]
[1749015575147,0.6526,2625.4,2625.3,0.7613]
[1749015575352,0.6226,2625.7,2625.4,0.76127]
[1749015575554,0.76126,2625.5,2625.3,0.76127]
[1749015575756,1.2804,2625.7,2625.2,23.34331]
[1749015575956,0.7613,2625.3,2625.2,23.41035602]
[1749015576159,0.76128,2625.4,2625.2,23.41035602]
[1749015576458,0.76125,2625.5,2625.2,22.64904602]
[1749015576756,1.89355425,2625.4,2625.3,23.33828]
[1749015578150,1.89355425,2625.4,2625.3,22.577]
[1749015578351,1.89355425,2625.4,2625.3,22.576]
[1749015579259,1.13228425,2625.4,2625.3,23.3373]
[1749015579457,1.89355425,2625.4,2625.3,23.3373]
[1749015580452,1.13228425,2625.4,2625.3,23.3373]
[1749015580958,1.89355425,2625.4,2625.3,22.576]
[1749015581458,1.89436728,2625.4,2625.3,22.576]
[1749015581853,1.89436728,2625.4,2625.3,23.3373]
[1749015582160,1.89436728,2625.4,2625.3,22.573]
[1749015582358,0.7613,2625.3,2625.2,4.80104602]
[1749015582550,0.76132,2625.2,2625.1,0.8669]
[1749015582756,5.10221728,2625.2,2625.1,0.8669]
[1749015583061,0.76147,2624.7,2624.6,0.00571875]
[1749015583653,0.76147,2624.7,2624.6,0.76721875]
[1749015583654,1.13309728,2624.7,2624.6,0.76721875]
[1749015585461,0.6596,2624.8,2624.7,0.76147]
[1749015585663,2.55542497,2624.8,2624.7,4.734]
[1749015585957,1.79398497,2624.8,2624.7,5.49547]
[1749015588554,1.13438497,2624.8,2624.7,5.49547]
[1749015588755,1.13438497,2624.8,2624.7,6.82407]
[1749015589353,3.96914,2625.2,2625.0,0.76138]
[1749015589560,3.96914,2625.2,2625.1,22.56]
[1749015589863,5.10364187,2625.2,2625.1,22.56]
[1749015592262,5.10372966,2625.2,2625.1,22.56]
[1749015592652,6.31662966,2625.2,2625.1,22.56]
[1749015593262,6.3168187,2625.2,2625.1,22.56]
[1749015593764,6.3168187,2625.2,2625.1,22.557]
[1749015597062,6.3168187,2625.2,2625.1,4.734]
[1749015597360,6.31689622,2625.2,2625.1,22.554]
[1749015599164,0.76135,2625.1,2625.0,4.734]
[1749015599365,3.21170622,2625.1,2625.0,4.734]
[1749015600565,0.76144,2624.8,2624.7,22.61904602]
[1749015600764,1.89629622,2624.8,2624.7,22.61904602]
[1749015600966,1.89645309,2624.8,2624.7,22.61904602]
[1749015601165,2.50465309,2624.8,2624.7,22.61904602]
[1749015601366,2.36591309,2624.8,2624.7,23.38051602]
[1749015601568,1.13501309,2624.8,2624.7,23.38051602]
[1749015601868,1.13501309,2624.8,2624.7,24.63971602]
[1749015602166,1.13501309,2624.8,2624.7,25.95091602]
[1749015603764,1.13501309,2624.8,2624.7,25.94991602]
[1749015603965,1.89645309,2624.8,2624.7,6.70564602]
[1749015604171,1.89645309,2624.8,2624.7,24.52264602]
[1749015604464,1.13501309,2624.8,2624.7,24.52264602]
[1749015604768,1.13501309,2624.8,2624.7,25.28411602]
[1749015607867,0.76137,2625.1,2624.9,0.7614]
[1749015608071,1.13562379,2625.0,2624.9,0.7614]
[1749015610967,1.13562379,2625.0,2624.9,2.0282]
[1749015615373,1.13562379,2625.0,2624.9,24.5612]
[1749015616074,0.61,2625.1,2625.0,0.76138]
[1749015616280,1.74714654,2625.1,2625.0,0.76138]
[1749015616578,1.13714654,2625.1,2625.0,0.76138]
[1749015616776,1.13714654,2625.1,2625.0,2.05388]
[1749015619890,0.3924,2625.2,2625.1,0.76135]
[1749015620190,1.52906464,2625.2,2625.1,2.05275]
[1749015620991,1.52906464,2625.2,2625.1,2.70655]
[1749015621581,1.52906464,2625.2,2625.1,5.91435]
[1749015622788,1.52906464,2625.2,2625.1,10.63735]
[1749015622995,1.52906464,2625.2,2625.1,28.44135]
[1749015623585,1.52906464,2625.2,2625.1,28.44035]
[1749015623997,1.52906464,2625.2,2625.1,27.14895]
[1749015624694,1.52906464,2625.2,2625.1,27.14795]
[1749015625497,1.52906464,2625.2,2625.1,28.37545]
[1749015627797,0.3924,2625.2,2625.1,28.37545]
[1749015628497,1.52741282,2625.2,2625.1,27.14795]
[1749015629188,1.52741282,2625.2,2625.1,26.49415]
[1749015629389,1.52741282,2625.2,2625.1,26.49115]
[1749015629996,2.28873282,2625.2,2625.1,7.9308]
[1749015630191,3.51423282,2625.2,2625.1,4.723]
[1749015630397,0.76135,2625.1,2625.0,0.06704602]
[1749015630603,2.52676282,2625.1,2625.0,22.58804602]
[1749015630897,3.14636282,2625.1,2625.0,22.58804602]
[1749015631488,3.14636282,2625.1,2625.0,22.58704602]
[1749015631690,7.57966282,2625.1,2625.0,0.06704602]
[1749015631894,7.57942206,2625.1,2625.0,0.06704602]
[1749015633496,3.14612206,2625.1,2625.0,0.06704602]
[1749015634094,7.61142206,2625.1,2625.0,17.86304602]
[1749015635802,7.61114315,2625.1,2625.0,17.86304602]
[1749015636999,2.38449315,2625.1,2625.0,18.62442602]
[1749015637302,1.13449315,2625.1,2625.0,19.23502602]
[1749015637501,1.13449315,2625.1,2625.0,20.46522602]
[1749015639703,3.2078,2626.0,2625.9,0.76112]
[1749015639891,3.2078,2626.0,2625.9,18.55412]
[1749015640098,0.6119,2626.5,2625.9,18.55412]
[1749015640099,0.76098,2626.4,2625.9,21.0008]
[1749015640399,0.76105,2626.2,2626.0,0.76108]
[1749015640605,3.2078,2626.3,2626.1,22.516]
[1749015640808,0.76109,2626.0,2625.9,0.00571875]
[1749015641404,0.76108,2626.1,2625.9,0.00571875]
[1749015641602,1.3048,2626.2,2625.9,0.00571875]
[1749015641906,1.42269,2626.0,2625.9,0.00571875]
[1749015644802,4.63049,2626.0,2625.9,17.79371875]
[1749015646610,4.63049,2626.0,2625.9,0.00571875]
[1749015646811,9.63049,2626.0,2625.9,0.00571875]
[1749015650412,4.63049,2626.0,2625.9,0.00571875]
[1749015650999,4.63049,2626.0,2625.9,0.07276477]
[1749015651711,5.75846743,2626.0,2625.9,0.07276477]
[1749015652119,1.78957743,2626.0,2625.9,0.83388477]
[1749015652315,2.55066743,2626.0,2625.9,0.07276477]
[1749015653209,5.75846743,2626.0,2625.9,22.56876477]
[1749015653705,5.75846743,2626.0,2625.9,4.78476477]
[1749015653906,5.75846743,2626.0,2625.9,0.07276477]
[1749015655512,5.75826105,2626.0,2625.9,0.07276477]
[1749015657117,6.97366105,2626.0,2625.9,0.07276477]
[1749015659818,6.97354284,2626.0,2625.9,0.07276477]
[1749015661714,0.76121,2625.6,2625.5,43.101]
[1749015661914,0.76121,2625.6,2625.5,22.492]
[1749015661915,1.88886284,2625.6,2625.5,22.492]
[1749015662414,2.51828576,2625.6,2625.5,22.492]
[1749015662612,1.75707576,2625.6,2625.3,0.00571875]
[1749015662813,0.76127,2625.4,2625.3,0.00571875]
[1749015663009,5.09644576,2625.4,2625.3,0.00571875]
[1749015663215,5.09644576,2625.4,2625.3,17.78471875]
[1749015663411,5.09644576,2625.4,2625.3,0.00571875]
[1749015663717,5.09644576,2625.4,2625.3,17.78471875]
[1749015663918,5.09644576,2625.4,2625.3,0.00571875]
[1749015664417,6.36154576,2625.4,2625.3,0.00571875]
[1749015665121,6.36154576,2625.4,2625.3,0.07276477]
[1749015666319,6.36206713,2625.4,2625.3,0.07276477]
[1749015668021,6.3614348,2625.4,2625.3,0.07276477]
[1749015670430,6.36087319,2625.4,2625.3,0.07276477]
[1749015674430,6.36068681,2625.4,2625.3,0.07276477]
[1749015674625,5.09558681,2625.4,2625.3,0.07276477]
[1749015675431,6.42248681,2625.4,2625.3,0.07276477]
[1749015678436,6.42394558,2625.4,2625.3,0.07276477]
[1749015679037,5.09704558,2625.4,2625.3,0.07276477]
[1749015682437,5.09745223,2625.4,2625.3,0.07276477]
[1749015686543,5.09828754,2625.4,2625.3,0.07276477]
[1749015689547,0.76138,2625.0,2624.9,0.94616477]
[1749015689748,1.89059754,2625.0,2624.9,0.94616477]
[1749015690654,1.89139771,2625.0,2624.9,0.94616477]
[1749015694559,0.76138,2625.0,2624.9,1.01321079]
[1749015694760,1.89231261,2625.0,2624.9,1.01321079]
[1749015695659,1.89231261,2625.0,2624.9,0.06704602]
[1749015696255,1.89231261,2625.0,2624.7,8.75e-06]
[1749015696256,0.76144,2624.8,2624.7,8.75e-06]
[1749015696456,5.10017261,2624.8,2624.7,8.75e-06]
[1749015696654,4.33873261,2624.8,2624.7,8.75e-06]
[1749015696856,1.13093261,2624.8,2624.7,8.75e-06]
[1749015697051,1.13093261,2624.8,2624.7,1.30070875]
[1749015697258,1.13093261,2624.8,2624.7,2.06217875]
[1749015697757,1.13093261,2624.8,2624.7,1.30070875]
[1749015698352,1.89237261,2624.8,2624.7,1.30070875]
[1749015698559,1.8920219,2624.8,2624.7,1.30070875]
[1749015698855,1.1305819,2624.8,2624.7,2.06217875]
[1749015699261,1.8920219,2624.8,2624.7,1.30070875]
[1749015699459,1.1305819,2624.8,2624.7,2.06217875]
[1749015700159,1.8920219,2624.8,2624.7,2.06217875]
[1749015700358,1.1305819,2624.8,2624.7,2.06217875]
[1749015700964,1.1305819,2624.8,2624.7,7.06217875]
[1749015701464,0.6198,2625.6,2625.2,0.76132]
[1749015701465,0.76129,2625.4,2625.2,0.76132]
[1749015701767,0.76129,2625.4,2625.3,1.9551]
[1749015703671,0.76125,2625.5,2625.3,2.7164]
[1749015703965,0.76125,2625.5,2625.4,1.3054]
[1749015704564,0.76125,2625.5,2625.4,1.8211]
[1749015706174,0.76125,2625.5,2625.4,1.3054]
[1749015706370,0.76125,2625.5,2625.4,19.0624]
[1749015707572,0.76127,2625.4,2625.3,5.3515]
[1749015707871,0.76127,2625.4,2625.3,23.1065]
[1749015710668,0.76127,2625.4,2625.3,23.17354602]
[1749015711968,0.76125,2625.5,2625.3,25.25984602]
[1749015712167,0.76125,2625.5,2625.4,1.325]
[1749015713575,1.88454656,2625.5,2625.4,1.325]
[1749015714576,1.88449024,2625.5,2625.4,1.325]
[1749015715172,1.12324024,2625.5,2625.4,1.325]
[1749015715563,1.88448024,2625.5,2625.4,1.8403]
[1749015715873,1.12324024,2625.5,2625.4,1.8403]
[1749015716463,1.12324024,2625.5,2625.4,2.60157]
[1749015716671,1.12324024,2625.5,2625.4,1.8403]
[1749015717070,1.12324024,2625.5,2625.4,2.60157]
[1749015717270,1.12324024,2625.5,2625.4,1.8403]
[1749015717479,1.12324024,2625.5,2625.4,2.60157]
[1749015717977,1.12324024,2625.5,2625.4,1.8403]
[1749015718676,1.88404458,2625.5,2625.4,1.8403]
[1749015718872,1.12280458,2625.5,2625.4,1.325]
[1749015720080,1.88404458,2625.5,2625.3,4.69462602]
[1749015720379,1.12280458,2625.4,2625.3,1.48682602]
[1749015720569,1.88407458,2625.4,2625.3,23.16354602]
[1749015721272,1.88407458,2625.4,2625.3,0.06704602]
[1749015721472,1.88391634,2625.4,2625.3,4.75904602]
[1749015721671,1.88391634,2625.4,2625.3,22.50404602]
[1749015722075,1.12264634,2625.4,2625.3,23.26534602]
[1749015723176,1.12264634,2625.4,2625.3,26.47314602]
[1749015723885,1.12264634,2625.4,2625.3,23.26534602]
[1749015724073,1.88391634,2625.4,2625.3,0.06704602]
[1749015724383,1.88391634,2625.4,2625.3,4.75904602]
[1749015724581,1.88391634,2625.4,2625.3,22.50204602]
[1749015725282,0.76127,2625.4,2625.3,22.50204602]
[1749015725581,1.88428212,2625.4,2625.3,22.50204602]
[1749015725980,1.88428212,2625.4,2625.3,0.06704602]
[1749015726184,1.88428212,2625.4,2625.3,17.80904602]
[1749015728182,1.88515703,2625.4,2625.3,17.80904602]
[1749015728985,1.12388703,2625.4,2625.3,18.57034602]
[1749015729174,3.96901,2625.6,2625.5,0.76124]
[1749015729484,5.09394226,2625.6,2625.4,0.76125]
[1749015729683,1.12493226,2625.5,2625.3,19.81553602]
[1749015729884,1.88620226,2625.4,2625.3,18.57034602]
[1749015730078,1.88620226,2625.4,2625.3,17.80904602]
[1749015730276,1.88620226,2625.4,2625.3,0.06704602]
[1749015730478,1.88620226,2625.4,2625.3,17.80704602]
[1749015731281,1.12493226,2625.4,2625.3,18.56834602]
[1749015731482,1.88620226,2625.4,2625.3,17.80704602]
[1749015731677,1.12493226,2625.4,2625.3,18.56834602]
[1749015731884,1.88620226,2625.4,2625.3,17.80704602]
[1749015732086,1.88620226,2625.4,2625.3,0.06704602]
[1749015732282,1.88620226,2625.4,2625.3,22.49804602]
[1749015733286,1.88702983,2625.4,2625.3,22.49804602]
[1749015734277,1.88702983,2625.4,2625.3,22.49604602]
[1749015734789,0.76138,2625.0,2624.9,0.8665]
[1749015735088,1.88713983,2625.0,2624.9,0.8665]
[1749015735493,0.76144,2624.8,2624.7,4.68100875]
[1749015735782,1.12575983,2624.8,2624.7,22.41700875]
[1749015736883,1.12575983,2624.8,2624.7,23.17847875]
[1749015737082,0.6552,2624.9,2624.7,23.17847875]
[1749015737289,1.12381245,2624.8,2624.7,23.17847875]
[1749015738088,1.12381245,2624.8,2624.7,4.68100875]
[1749015738388,1.88525245,2624.8,2624.7,22.41700875]
[1749015738591,1.88525245,2624.8,2624.7,4.68100875]
[1749015738785,1.88525245,2624.8,2624.7,22.41700875]
[1749015739495,1.88525245,2624.8,2624.7,22.41600875]
[1749015740180,1.88525245,2624.8,2624.7,22.48305477]
[1749015740684,1.12381245,2624.8,2624.7,22.48305477]
[1749015740989,1.88525245,2624.8,2624.7,22.48305477]
[1749015741182,1.8824491,2624.8,2624.7,22.48305477]
[1749015742585,1.1210091,2624.8,2624.7,23.24452477]
[1749015744582,1.8824491,2624.8,2624.7,22.48305477]
[1749015746187,1.1210091,2624.8,2624.7,23.24452477]
[1749015746589,1.1210091,2624.8,2624.7,22.48305477]
[1749015747194,1.8824491,2624.8,2624.7,22.48305477]
[1749015747694,1.8824491,2624.8,2624.7,17.79905477]
[1749015748083,1.8824491,2624.8,2624.7,0.06705477]
[1749015748395,1.8824491,2624.8,2624.7,17.79905477]
[1749015749096,0.76144,2624.8,2624.7,17.79905477]
[1749015749298,1.88124393,2624.8,2624.7,17.79905477]
[1749015749491,1.11980393,2624.8,2624.7,17.79905477]
[1749015749794,1.88124393,2624.8,2624.7,17.79905477]
[1749015751490,1.88088199,2624.8,2624.7,17.79705477]
[1749015753091,0.76144,2624.8,2624.7,17.79705477]
[1749015753396,1.88079142,2624.8,2624.7,17.79705477]
[1749015753789,1.88079142,2624.8,2624.7,17.79605477]
[1749015754494,1.88079142,2624.8,2624.7,17.79505477]
[1749015754998,1.88079142,2624.8,2624.7,0.06705477]
[1749015755206,3.21279142,2624.8,2624.7,0.06705477]
[1749015757082,2.09344,2624.8,2624.7,0.06705477]
[1749015757298,3.2130194,2624.8,2624.7,0.06705477]
[1749015760610,1.8810194,2624.8,2624.7,0.06705477]
[1749015761298,1.88232266,2624.8,2624.7,0.06705477]
[1749015765213,1.88430937,2624.8,2624.7,0.06705477]
[1749015768003,1.88430937,2624.8,2624.7,1.33935477]
[1749015768209,1.12286937,2624.8,2624.7,2.10082477]
[1749015769004,1.12286937,2624.8,2624.7,7.10082477]
[1749015769707,1.12286937,2624.8,2624.7,24.81982477]
[1749015769908,1.12286937,2624.8,2624.7,19.81982477]
[1749015773103,0.7614,2625.0,2624.8,0.76142]
[1749015773309,1.12212079,2624.9,2624.8,2.05192]
[1749015774015,1.88353079,2624.9,2624.8,2.05192]
[1749015774314,1.12212079,2624.9,2624.8,2.05192]
[1749015774506,1.88353079,2624.9,2624.8,1.2905]
[1749015775012,1.12212079,2624.9,2624.8,2.05194]
[1749015775416,1.88353079,2624.9,2624.8,2.05194]
[1749015775717,1.12212079,2624.9,2624.8,2.05194]
[1749015776228,0.76144,2624.8,2624.7,0.06705477]
[1749015776411,2.52756079,2624.8,2624.7,0.06705477]
[1749015777612,3.76566079,2624.8,2624.7,0.06705477]
[1749015780806,3.76436824,2624.8,2624.7,0.06705477]
[1749015783615,2.64354,2624.8,2624.7,0.06705477]
[1749015783812,3.76417229,2624.8,2624.7,0.06705477]
[1749015788321,3.76407744,2624.8,2624.7,0.06705477]
[1749015791831,3.76412407,2624.8,2624.7,0.06705477]
[1749015795337,1.90436,2623.8,2622.6,0.30855018]
[1749015795518,3.2078,2623.5,2622.9,1.2344]
[1749015795717,3.2078,2623.5,2623.1,0.76192]
[1749015795931,1.11976519,2623.4,2623.2,1.2344]
[1749015796126,0.00571875,2623.6,2623.3,0.5158]
[1749015796322,1.13439196,2623.5,2623.3,0.5158]
[1749015796519,1.13439196,2623.4,2623.3,0.5158]
[1749015796725,1.13439196,2623.4,2623.3,1.7652]
[1749015797630,1.13439196,2623.4,2623.3,24.1292]
[1749015798124,1.89624196,2623.4,2623.3,24.1292]
[1749015799131,1.13439196,2623.4,2623.3,24.1292]
[1749015799331,0.76185,2623.4,2623.3,22.365]
[1749015800129,0.76185,2623.4,2623.3,22.43204602]
[1749015800520,1.89557788,2623.4,2623.3,22.43204602]
[1749015805440,1.89440707,2623.4,2623.3,22.43404602]
[1749015808132,1.89455195,2623.4,2623.3,22.43404602]
[1749015809845,1.89455195,2623.4,2623.3,4.72704602]
[1749015810137,1.89455195,2623.4,2623.3,0.06704602]
[1749015811737,3.16995195,2623.4,2623.3,0.06704602]
[1749015812134,3.16943565,2623.4,2623.3,0.06704602]
[1749015812637,3.16943565,2623.4,2623.3,6.02e-06]
[1749015815939,2.03725,2623.4,2623.3,6.02e-06]
[1749015816141,3.16883088,2623.4,2623.3,6.02e-06]
[1749015817242,1.13158088,2623.4,2623.3,6.02e-06]
[1749015817436,1.89343088,2623.4,2623.3,6.02e-06]
[1749015817838,1.89343088,2623.4,2623.3,1.22910602]
[1749015820040,1.89464629,2623.4,2623.3,1.22910602]
[1749015820338,1.89464629,2623.4,2623.3,6.02e-06]
[1749015821537,3.18494629,2623.4,2623.3,6.02e-06]
[1749015823943,3.18710274,2623.4,2623.3,6.02e-06]
[1749015827044,1.89680274,2623.4,2623.3,6.02e-06]
[1749015827544,1.89679274,2623.4,2623.3,6.02e-06]
[1749015827946,1.89801898,2623.4,2623.3,6.02e-06]
[1749015829552,3.14481898,2623.4,2623.3,6.02e-06]
[1749015830143,8.14481898,2623.4,2623.3,6.02e-06]
[1749015830350,3.14481898,2623.4,2623.3,6.02e-06]
[1749015832048,6.35277837,2623.4,2623.3,6.02e-06]
[1749015832250,5.10597837,2623.4,2623.3,6.02e-06]
[1749015835949,3.96964,2623.4,2623.3,6.02e-06]
[1749015836143,5.10589551,2623.4,2623.3,6.02e-06]
[1749015837145,5.10589551,2623.4,2623.3,6.73387602]
[1749015837146,1.13625551,2623.4,2623.3,6.73387602]
[1749015841254,1.13625551,2623.4,2623.3,24.43387602]
[1749015842460,0.76753875,2623.6,2623.4,0.76183]
[1749015842650,1.13613086,2623.5,2623.4,2.02633]
[1749015843158,1.89795086,2623.5,2623.4,2.02633]
[1749015843456,1.13613086,2623.5,2623.4,2.02633]
[1749015843660,1.89795086,2623.5,2623.4,2.02633]
[1749015843854,1.13613086,2623.5,2623.4,2.02633]
[1749015844255,1.89795086,2623.5,2623.4,1.2645]
[1749015844562,1.89795086,2623.5,2623.4,18.9625]
[1749015844959,1.89795086,2623.5,2623.4,19.72435]
[1749015845561,1.89795086,2623.5,2623.4,19.79139602]
[1749015846061,1.89795086,2623.5,2623.4,19.02954602]
[1749015846257,1.89795086,2623.5,2623.4,19.02854602]
[1749015846762,1.89730773,2623.5,2623.4,19.02854602]
[1749015847764,1.13548773,2623.5,2623.4,19.02854602]
[1749015847957,1.89730773,2623.5,2623.4,19.02854602]
[1749015848562,1.89715621,2623.5,2623.4,19.02854602]
[1749015848865,1.89715621,2623.5,2623.4,1.33154602]
[1749015849065,1.89715621,2623.5,2623.4,19.02754602]
[1749015850466,1.89715621,2623.5,2623.4,19.02654602]
[1749015850663,1.89696342,2623.5,2623.4,19.02654602]
[1749015853370,1.89696342,2623.5,2623.4,19.02554602]
[1749015854475,1.89696342,2623.5,2623.4,17.76104602]
[1749015854665,1.8973174,2623.5,2623.4,17.76104602]
[1749015855167,1.1354974,2623.5,2623.4,18.52289602]
[1749015855471,1.1354974,2623.5,2623.4,19.76189602]
[1749015856072,3.2078,2624.1,2623.5,0.76182]
[1749015856271,0.7617,2623.9,2623.6,4.9632]
[1749015856571,0.76169,2624.0,2623.8,0.76172]
[1749015856768,0.76169,2624.0,2623.8,2.00072]
[1749015857672,3.2078,2624.1,2623.8,2.00072]
[1749015857871,0.7617,2623.9,2623.8,1.239]
[1749015858071,1.37999,2624.0,2623.8,2.00071]
[1749015859171,0.7617,2623.9,2623.8,2.00071]
[1749015859365,0.7617,2623.9,2623.8,2.00073]
[1749015859865,1.37999,2624.0,2623.8,2.00073]
[1749015860073,0.6183,2624.0,2623.8,2.00073]
[1749015860567,0.6183,2624.0,2623.8,1.239]
[1749015860774,0.6183,2624.0,2623.8,1.30604602]
[1749015861473,0.6183,2624.0,2623.8,2.06775602]
[1749015861773,1.38,2624.0,2623.8,2.06775602]
[1749015861973,0.7617,2623.9,2623.8,2.06775602]
[1749015862367,1.37999,2624.0,2623.8,2.06775602]
[1749015862567,1.37999,2624.0,2623.9,0.7617]
[1749015862770,0.6183,2624.0,2623.9,0.7617]
[1749015863065,0.00571875,2624.2,2624.1,0.76164]
[1749015863270,0.00571875,2624.2,2624.1,5.41264]
[1749015863671,0.76732875,2624.2,2624.1,22.339]
[1749015864172,0.7617,2623.9,2623.8,4.71804602]
[1749015864373,0.00571875,2624.2,2623.8,5.47976602]
[1749015864374,1.2834,2624.1,2623.8,5.47976602]
[1749015864671,0.7617,2623.9,2623.8,22.40604602]
[1749015864876,0.7617,2623.9,2623.8,23.16777602]
[1749015865876,0.7617,2623.9,2623.8,22.40604602]
[1749015866778,0.7617,2623.9,2623.8,23.16777602]
[1749015866977,0.7617,2623.9,2623.8,4.71804602]
[1749015867178,0.7617,2623.9,2623.8,22.40504602]
[1749015867371,1.9676,2623.9,2623.8,22.40504602]
[1749015867677,1.9676,2623.9,2623.8,4.71804602]
[1749015868078,3.10144353,2623.9,2623.8,4.71804602]
[1749015870678,3.10156197,2623.9,2623.8,4.71804602]
[1749015873078,3.10156197,2623.9,2623.8,0.06704602]
[1749015874674,3.10150861,2623.9,2623.8,0.06704602]
[1749015879084,1.13390861,2623.9,2623.8,0.82877602]
[1749015879579,1.13390861,2623.9,2623.8,2.74727602]
[1749015882677,0.76166,2624.1,2623.8,1.98554602]
[1749015882883,1.13405831,2624.0,2623.9,5.41268]
[1749015883989,1.13405831,2624.0,2623.9,6.64938]
[1749015886785,0.00571875,2624.2,2624.1,0.76164]
[1749015886986,1.13952162,2624.2,2624.1,0.76164]
[1749015887390,1.13952162,2624.2,2624.1,2.05134]
[1749015890194,1.13952162,2624.2,2624.1,2.11838602]
[1749015890693,0.00571875,2624.2,2624.1,2.11838602]
[1749015890893,1.13877369,2624.2,2624.1,2.11838602]
[1749015893187,1.13877369,2624.2,2624.1,19.79438602]
[1749015893394,1.90038369,2624.2,2624.1,19.79438602]